Cogmind - Beta 15 @@@ ROGUE MODE // 2025.09.19 @ 09:33:39 Player: Petvaria Result: Smashed by cave-in Performance ------------- Evolutions (0) 0 Regions Visited (2) 400 Robots Destroyed (25) 125 Value Destroyed (683) 683 Prototype IDs (12) 240 Alien Tech Used (0) 0 Bonus (151) 151 TOTAL SCORE: 1599 Bonus ------- Follower Combat Kills 164 Friendly Fire -13 Cogmind --------- Core Integrity 0/250 Matter 76/300 Energy 179/180 System Corruption 0% Temperature Cool (0) Movement Rolling (145) Ox3 Location -10/Subcaves Parts ------- > --- POWER (1) -------- Meta Core > --- PROPULSION (2+1) - Light Treads (+) Spiked Treads Compact Wheel > --- UTILITY (2+1) ---- High-capacity Storage Unit Light Armor Plating (+) V3-11A's Pendant > --- WEAPON (2+1) ----- Subdweller Shrapnel Launcher Makeshift Spear > --- INVENTORY (20) --- Light Ion Engine Spiked Treads Subdweller Monowheel Subdweller Monowheel Subdweller Monowheel Subdweller Monowheel Huge Storage Unit Subdweller Optics Scrap Shield Hacking Suite Medium Laser Subdweller Laser Subdweller Beam Cannon Subdweller Beam Cannon Heavy Assault Rifle Autogun Autogun Subdweller Machine Gun Subdweller Shrapnel Launcher Peak State ------------ > --- POWER ------------ Meta Core > --- PROPULSION ------- Light Treads Spiked Treads Compact Wheel > --- UTILITY ---------- High-capacity Storage Unit Light Armor Plating V3-11A's Pendant > --- WEAPON ----------- Heavy Assault Rifle Makeshift Spear > --- INVENTORY -------- Light Ion Engine Spiked Treads Subdweller Monowheel Subdweller Monowheel Subdweller Monowheel Subdweller Monowheel Huge Storage Unit Subdweller Optics Scrap Shield Hacking Suite Medium Laser Subdweller Laser Subdweller Beam Cannon Subdweller Beam Cannon Autogun Autogun Subdweller Machine Gun Subdweller Shrapnel Launcher Subdweller Shrapnel Launcher [Rating: 31] Favorites ----------- Power Light Ion Engine Engine Light Ion Engine Power Core Meta Core Propulsion Light Treads Treads Light Treads Wheel Compact Wheel Utility High-capacity Storage Unit Device V3-11A's Pendant Storage High-capacity Storage Unit Protection Core Shielding Weapon Medium Laser Energy Gun Medium Laser Ballistic Gun Heavy Assault Rifle Launcher Subdweller Shrapnel Launcher Impact Weapon Hammer Piercing Weapon Makeshift Spear Build | -11 -10 -10 ------- Run | Yrd Mat Sub Slots Evolved . | . . . Power . | . . . Propulsion . | . . . Utility . | . . . Weapon . | . . . Parts Attached 27 | 6 7 14 Power 4 | 1 1 2 Engine 3 | 1 1 1 Core 1 | . . 1 Reactor . | . . . Propulsion 6 | 2 1 3 Treads 4 | 2 1 1 Leg . | . . . Wheel 2 | . . 2 Hover . | . . . Flight . | . . . Utility 6 | 1 3 2 Device 1 | . . 1 Storage 3 | 1 2 . Processor . | . . . Hackware . | . . . Protection 2 | . 1 1 Artifact . | . . . Weapon 11 | 2 2 7 Energy Gun 3 | 2 . 1 Energy Cannon . | . . . Ballistic Gun 5 | . 1 4 Ballistic Cannon . | . . . Launcher 1 | . . 1 Special Weapon . | . . . Impact Weapon 1 | . 1 . Slashing Weapon . | . . . Piercing Weapon 1 | . . 1 Special Melee Weapon . | . . . Unidentified Prototypes 1 | . . 1 Parts Lost 6 | . . 6 Power 1 | . . 1 Propulsion 1 | . . 1 Utility . | . . . Weapon 4 | . . 4 Highest Loss Streak 5 | . . 5 To Critical Strikes . | . . . Average Backups 16 | 3 14 18 Power 1 | . 1 1 Propulsion 2 | 2 1 3 Utility 3 | . 2 4 Weapon 9 | . 9 9 Tool/Special . | . . . Unused Backups 21 | . 4 17 Power 1 | . . 1 Propulsion 7 | . 3 4 Utility 4 | . 1 3 Weapon 9 | . . 9 Tool/Special . | . . . Average Slot Usage (%) 96 | . 98 95 Engine 10 | . 14 7 Core 2 | . . 4 Treads 22 | . 28 18 Wheel 5 | . . 9 Device 1 | . . 2 Storage 12 | . 14 12 Protection 13 | . 12 14 Energy Gun 12 | . 14 11 Ballistic Gun 12 | . 13 11 Peak Build Rating 31 | 6 10 31 Average Rating 14 | 4 9 18 On Entrance 5 | . 6 10 Naked Turns . | . . . Heaviest Build 60 | 14 51 60 Greatest Support 40 | 40 40 40 Greatest Overweight (x) 3 | . 1 3 Average Overweight (x) 2 | . . 2 Largest Inventory Capacity 25 | 8 25 20 Average Capacity 19 | 6 19 20 Most Carried 20 | 6 17 20 Average Carried 17 | 3 14 18 Final Capacity 20 | 8 20 20 Final Carried 20 | 6 17 20 Class Distribution -------------------- 100% | Mutant Dominant Class ---------------- Mutant | -10/Materials Mutant | -10/Subcaves Resources | -11 -10 -10 ----------- Run | Yrd Mat Sub Matter Collected 824 | 205 301 318 Remotely . | . . . Salvage Created 997 | . 705 292 Parts 61 | . 44 17 Haulers Intercepted 1 | . 1 . Recyclers Shooed 2 | . 2 . Parts Field Recycled . | . . . Retrieved Matter . | . . . Parts Self-Destructed 14 | . . 14 Prevented . | . . . Kills | -11 -10 -10 ------- Run | Yrd Mat Sub Combat Hostiles Destroyed 17 | . 10 7 Guns 16 | . 10 6 AOE 1 | . . 1 Classes Destroyed 11 | . 8 3 Worker 1 | . 1 . Builder 1 | . 1 . Tunneler 1 | . 1 . Hauler 1 | . 1 . Recycler 1 | . 1 . Operator 1 | . 1 . Watcher 2 | . 2 . Swarmer 2 | . . 2 Grunt 10 | . 10 . Sentry 1 | . . 1 Subdweller 4 | . . 4 Best Kill Streak 2 | . 2 1 Combat Bots Only 2 | . 2 1 Max Kills in Single Turn 2 | . 2 1 Gunslinging . | . . . Exploded 1 | . . 1 Melee . | . . . Uniques/NPCs Destroyed . | . . . Combat | -11 -10 -10 -------- Run | Yrd Mat Sub Hostile Shots Fired 100 | . 44 56 Missed 20 | . 10 10 Hits 80 | . 34 46 Projectile 80 | . 34 46 AOE 2 | . . 2 Critical Strikes 3 | . . 3 Damage Taken 1453 | . 424 1029 Core 264 | . 92 172 Absorbed by Shields . | . . . Redirected to Shielding 37 | . 16 21 Core Remaining (%) 100 | 100 . . Volleys Fired 95 | . 52 43 Largest 2 | . 2 2 Hottest 73 | . 73 73 Shots Fired 175 | . 103 72 Gun 163 | . 103 60 Cannon . | . . . Launcher 12 | . . 12 Special . | . . . Kinetic 93 | . 52 41 Thermal 82 | . 51 31 Explosive . | . . . Electromagnetic . | . . . Robot Hit Streak 31 | . 17 31 Robot Miss Streak 3 | . 3 2 Penetration Max . | . . . Secondary Targets 1 | . 1 . Max Gunslinging Chain 1 | . 1 . Shots Hit Robots 111 | . 68 43 Core Hits 42 | . 30 12 Critical Kills . | . . . Critical Parts Destroyed . | . . . Critical Strikes 2 | . . 2 Burn 1 | . . 1 Destroy 1 | . . 1 Melee Attacks 39 | . 19 20 Impact 34 | . 19 15 Slashing . | . . . Piercing 5 | . . 5 Sneak Attacks . | . . . Combat Hostiles . | . . . Follow-up Attacks . | . . . Damage Inflicted 1543 | . 950 593 Guns 1491 | . 950 541 Cannons . | . . . Explosions 52 | . . 52 Melee . | . . . Ramming . | . . . Kinetic 813 | . 459 354 Thermal 730 | . 491 239 Explosive . | . . . Electromagnetic . | . . . Impact . | . . . Slashing . | . . . Piercing . | . . . Highest Corruption . | . . . Average Corruption . | . . . Corruption Purged . | . . . Corruption Blocked . | . . . Overload Shots . | . . . Overflow Damage . | . . . Projectiles . | . . . Explosions . | . . . Melee . | . . . Knockbacks . | . . . Impact . | . . . Kinetic . | . . . Secondary . | . . . Self-Inflicted Damage . | . . . Shots . | . . . Rammed . | . . . Targets Rammed . | . . . Kicked . | . . . Crushed . | . . . Highest Temperature 114 | . 114 11 Average Temperature 34 | . 34 11 Received Heat Transfer 495 | . 237 258 Siege Activations . | . . . Martial Activations . | . . . Shielding Activations . | . . . Robots Disrupted . | . . . Combat Hostiles . | . . . Robots Corrupted . | . . . Combat Hostiles . | . . . Parts Fried . | . . . Impact Corruptions . | . . . Robots Melted . | . . . Combat Hostiles . | . . . Parts Melted 2 | . . 2 Heat Transferred 2220 | . 1443 777 Parts Sabotaged . | . . . Parts Stolen . | . . . Parts Stripped . | . . . Power Chain Reactions . | . . . Alert | -11 -10 -10 ------- Run | Yrd Mat Sub Maximum Alert Level . | . . . Low Security (%) 100 | 100 100 . Level 1 . | . . . Level 2 . | . . . Level 3 . | . . . Level 4 . | . . . Level 5 . | . . . High Security . | . . . Max Security . | . . . Peak Influence 78 | . 78 . Initial . | . . . Average 14 | . 14 . Influence Increases 606 | . 350 256 Destroy 0b10 Robot/C 380 | . 200 180 Destroy 0b10 Robot/NC 40 | . 40 . Destroy Leader 56 | . 46 10 Allied During Kill 21 | . . 21 Disable Machine 15 | . 15 . Destroy Structure 4 | . 4 . Lose Combat Pursuer 90 | . 45 45 Influence Decreases 572 | . 350 222 Time Decay 412 | . 350 62 Lost Ally 160 | . . 160 Squads Dispatched 2 | . 2 . Investigation 1 | . 1 . Extermination . | . . . Reinforcement 1 | . 1 . Assault . | . . . Garrison . | . . . Intercept . | . . . Searches Triggered . | . . . Construction Impeded . | . . . Haulers Reinforced . | . . . Active Scanning Responses . | . . . Cargo Convoy Interrupts . | . . . Stealth | -11 -10 -10 --------- Run | Yrd Mat Sub Distress Signals 1 | . 1 . Communications Jammed . | . . . Distress Signals . | . . . Times Spotted 47 | . 26 21 Peak Tracking Total 3 | . 3 2 Tactical Retreats 4 | . 2 2 Traps | -11 -10 -10 ------- Run | Yrd Mat Sub Traps Triggered 1 | . 1 . Indirectly . | . . . Trap Hack Attempts . | . . . Triggered . | . . . Disarmed . | . . . Reprogrammed . | . . . Reused . | . . . Traps Extracted . | . . . Installed . | . . . Triggered . | . . . Machines | -11 -10 -10 ---------- Run | Yrd Mat Sub Machines Disabled 3 | . 1 2 Max in Single Turn 1 | . 1 1 Machines Repaired . | . . . Machines Dismantled . | . . . Machines Sabotaged . | . . . Overloaded Fab Kills . | . . . Hacking | -11 -10 -10 --------- Run | Yrd Mat Sub Machines Accessed 2 | . 1 1 Terminals 1 | . 1 . Fabricators . | . . . Repair Stations . | . . . Recycling Units . | . . . Scanalyzers . | . . . Garrison Access . | . . . Total Hacks 3 | . 2 1 Successful 2 | . 1 1 Failed 1 | . 1 . Catastrophic . | . . . Database Lockouts . | . . . Manual 2 | . 2 . Terminals 2 | . 2 . Fabricators . | . . . Repair Stations . | . . . Recycling Units . | . . . Scanalyzers . | . . . Garrison Access . | . . . Terminal Hacks 1 | . . 1 Proto ID Catalog 1 | . . 1 Fabricator Hacks . | . . . Repair Station Hacks . | . . . Recycling Unit Hacks . | . . . Scanalyzer . | . . . Garrison Access Hacks . | . . . Unauthorized Hacks 1 | . 1 . Terminals 1 | . 1 . Operators 1 | . 1 . Fabricators . | . . . Repair Stations . | . . . Recycling Units . | . . . Scanalyzers . | . . . Garrison Access . | . . . Data Cores Recovered . | . . . Used . | . . . Hacking Detections 1 | . 1 . Full Trace Events . | . . . Feedback Events . | . . . Feedback Blocked . | . . . Robot Schematics Acquired . | . . . Robots Built . | . . . Authchips . | . . . Time . | . . . Total Robot Build Rating . | . . . Part Schematics Acquired . | . . . Parts Built . | . . . Authchips . | . . . Time . | . . . Total Part Build Rating . | . . . Parts Repaired . | . . . Time . | . . . Parts Recycled . | . . . Recycled Matter . | . . . Retrieved Matter . | . . . Retrieved Components . | . . . Parts Scanalyzed . | . . . Part Schematics Acquired . | . . . Parts Damaged . | . . . Bothacking | -11 -10 -10 ------------ Run | Yrd Mat Sub Used RIF Installer . | . . . Robots Hacked . | . . . Non-combat . | . . . Combat . | . . . Robot Hacks Applied . | . . . Relay Couplers Released . | . . . Fabnet Peak Effective % . | . . . Robots Rewired . | . . . Allies Hacked . | . . . Hacks Repelled . | . . . Allies | -11 -10 -10 -------- Run | Yrd Mat Sub Total Allies 10 | . . 10 Largest Group 6 | . . 6 Highest-Rated Group 114 | . . 114 Highest-Rated Ally 19 | . . 19 Total Orders . | . . . Ally Attacks 53 | . . 53 Total Damage 924 | . . 924 Kills 9 | . . 9 Allies Corrupted . | . . . Allies Melted . | . . . Intel | -11 -10 -10 ------- Run | Yrd Mat Sub Active Infowar (turns) . | . . . Robot Analysis Total . | . . . Derelict Logs Recovered 1 | . . 1 Drone Launches . | . . . Drone Recoveries . | . . . Exploration | -11 -10 -10 ------------- Run | Yrd Mat Sub Turns Passed 6339 | 67 2551 3721 Spaces Moved 3120 | 45 782 2293 Core 19 | 19 . . Treads 1068 | 26 782 260 Legs . | . . . Wheels 2033 | . . 2033 Hover . | . . . Flight . | . . . Fastest Speed 50 | 50 160 130 Average Speed 171 | 113 231 151 Slowest Speed 240 | 160 240 240 Overloaded Moves . | . . . Propulsion Burnouts . | . . . Robots Hopped . | . . . Potential Cave-ins 1 | . . 1 Cave-ins Triggered 1 | . . 1 Exploration Rate (%) 59 | 3 79 96 Regions Visited 2 Branch Regions 1 Pre-discovered Areas . | . . . Known Exits Taken . | . . . Unknown Exits Taken 2 | 1 1 . Scrap Searched 11 | . . 11 Spaces Dug 85 | . 1 84 Terrain Destroyed 157 | . 1 156 Melee 1 | . 1 . Projectile . | . . . AOE 156 | . . 156 Terrain Rammed . | . . . Walls Destroyed . | . . . Machines Disabled . | . . . Actions | -11 -10 -10 --------- Run | Yrd Mat Sub Total 3878 | 61 1383 2434 Wait 528 | . 497 31 Move 3117 | 44 781 2292 Hop . | . . . Pick Up 44 | 11 17 16 Fast Attach 4 | 1 1 2 Attach 14 | 5 . 9 Detach 1 | . . 1 Swap 21 | . 10 11 Drop 15 | . 6 9 Fire 95 | . 52 43 Melee 39 | . 19 20 Ram . | . . . Kick . | . . . Crush . | . . . Escape Stasis . | . . . Rewire . | . . . Trap . | . . . Miscellaneous . | . . . Route ------- -11/Scrapyard -10/Materials (discovered 4 exits: [*Mat x2] / [*Min] / *Sub) -10/Subcaves (discovered 2 exits: [*Mat x2]) History --------- Turn | Location | Event 3 | -11/Scrapyard | Discovered new exit (range 16) 68 | -11/Scrapyard | Entered Materials 305 | -10/Materials | Build established: Mutant 1055 | -10/Materials | Discovered new exit (range 3) 1771 | -10/Materials | Discovered new exit (range 6) 1874 | -10/Materials | Discovered new exit (range 16) 2609 | -10/Materials | Discovered new exit (range 3) 2619 | -10/Materials | Entered Subcaves 3735 | -10/Subcaves | Curiously followed by a Cobbler waking with a query about "LVR3C" 4003 | -10/Subcaves | Shifting Twisted Machinery released Multitool 4005 | -10/Subcaves | Shifting Twisted Machinery released Sub. Machine Gun 4177 | -10/Subcaves | Core integrity fell below 50% 4231 | -10/Subcaves | Lost 5 parts (1p1n3w) 4704 | -10/Subcaves | Visited 4L-MR0's lab 4722 | -10/Subcaves | Found Meta Core 4723 | -10/Subcaves | Attached Meta Core, gained temporary slots: Propulsion, Utility, Weapon 5320 | -10/Subcaves | Shifting Twisted Machinery released Spk. Treads 5322 | -10/Subcaves | Shifting Twisted Machinery released Sub. Monowheel 5454 | -10/Subcaves | Visited triangular shrine 5463 | -10/Subcaves | Found Prototype Device 5463 | -10/Subcaves | Identified V3-11A's Pendant 5468 | -10/Subcaves | Befriended Subdweller 5502 | -10/Subcaves | Core integrity fell below 20% 5563 | -10/Subcaves | Befriended Subdweller 5563 | -10/Subcaves | Befriended Subdweller 5812 | -10/Subcaves | Learned Materials emergency access door positions 5833 | -10/Subcaves | Befriended Subdweller 5842 | -10/Subcaves | Shifting Twisted Machinery released Humpback 5873 | -10/Subcaves | Befriended Subdweller 5873 | -10/Subcaves | Befriended Subdweller 5873 | -10/Subcaves | Befriended Subdweller 5995 | -10/Subcaves | Discovered new exit (range 9) 6033 | -10/Subcaves | Shifting Twisted Machinery released Sub. Machine Gun 6058 | -10/Subcaves | Discovered new exit (range 10) 6283 | -10/Subcaves | Ambushed by Subdweller buried in earth 6295 | -10/Subcaves | Ambushed by Subdweller buried in earth 6295 | -10/Subcaves | Ambushed by Subdweller buried in earth 6295 | -10/Subcaves | Ambushed by Subdweller buried in earth 6298 | -10/Subcaves | Befriended Subdweller 6308 | -10/Subcaves | Ambushed by Subdweller buried in earth 6308 | -10/Subcaves | Ambushed by Subdweller buried in earth 6313 | -10/Subcaves | Befriended Subdweller 6313 | -10/Subcaves | Befriended Subdweller 6340 | -10/Subcaves | Crushed by falling debris 6340 | -10/Subcaves | Smashed by cave-in Last Messages --------------- BC-B7B(R): "TEEM!" 0Q-F0P(R): "SUBSUB?" The unstable cave ceiling collapses. U8-41L(R) affixes Scrap Shield Fragment to Scrap Shield. 85-C47(R) destroyed. SP-FAT(R) affixes Scrap Shield Fragment to Scrap Shield. 5V-006(R) affixes Scrap Shield Fragment to Scrap Shield. 0Q-F0P(R) affixes Scrap Shield Fragment to Scrap Shield. 5V-006(R) destroyed. U8-41L(R) destroyed. 0Q-F0P(R) affixes Scrap Shield Fragment to Scrap Shield. Acquired 26 matter. Acquired 10 matter. The unstable cave ceiling collapses. Crushed by falling debris. Map ----- +----------------------------------------------------+ | ???## ##???????# ## #??????????????????? | | ???#" "#???????# #???????????????????? | | ???### ###?????####### ##???????????????????? | | ???### ######### ###### ##???????????????????? | | # ## # # # #???????????????????? | | ##???????????????????? | | ##????????????????????? | | ## ####?????????????????????? | | ########????????????????????????? | | # ## ##??????????????????????????????? | | ## #### #??????????????????????????????? | | ?# #??# #?" " " "????????????????????? | | ?# ## ##? % "#???????????????????? | | # ### #? #???????????????????? | | # #??### #?? #???????????????????? | | # ?????# ##### #??!& ?????????????????????? | | ###?????##???## ####%& #??????????????????????? | | ?????????????# & ## [!&#??????????????????????? | | ?????????????# !=%#######????????????????? | | ????#####???## %[ # #######??????????? | | ???## #??## R%#; # # ##?????????? | | ??## #?## ## R#&! #?????????? | | ### ### #### = #?????????? | | # ## #??## [ # #?????????? | | #???# = ##????????? | | ##???# @ #????????? | | #????## #????????? | | ####?###### #????????? | | # #???## ### #?###????? | | ## ##???# ##; O ;;;### #####? | | ?## ####### # ## | | ??# ### ### ## | | ??# ## ### ;; | | #?## [ ### | | ###### ## #?# | | ##??## #### ### | | ##?## ## ### ## [ ## """ | | # ### #### ## ##### ## "" "# | | ## " #?## ### #???# ## "##### ## | | ?## " "" #??###?# #?### ####?# #### | | ??#####" ##?????## #?# ## #??# | | ?????## #?????## #?### ### ##??# | | ?????#"# "##?????# ######## #?# ###??## | | ?????#"# ""#????### ##?## #?# ##???## | | ????## # ""###### ### ##?# #?####????# | | ???## #"""##"# #### #?# ##????????# | | ???# """"" #?# ## #????????# | | ???# ####? ## #???????# | | ???# ""# ## ###???? #### ##??????# | | ???## ### ######?????## ###??# #???????# | +----------------------------------------------------+ Best States ------------- Heat Dissipation 25 Energy Generation 17 Energy Capacity 250 Matter Stores 300 Matter Capacity 300 Sight Range 16 Terrain Scan Density 10 Armor Coverage 150 Core Shielding 20 Evasion (%) 50 Recoil Reduction 2 Item Schematics ----------------- None Robot Schematics ------------------ None Fabricated ------------ Nothing Repaired ---------- Nothing Alien Tech Used ----------------- None Achievements -------------- None Challenges ------------ None Game ------ Seed TechSalvagingAutobeam Manual? 1 Play Time 00:23:23 Cumulative 233.4 hours Start 2025.09.19 @ 09:08:34 End 2025.09.19 @ 09:33:39 Sessions 1 Manual Loads 0 Difficulty Rogue Special Mode None Game No. 204 Rogue 204 Adventurer 0 Explorer 0 Win Type - Total 13 Types 7/0/2/2/1/0/0/0/0/1 Lore% 93 Gallery% 86 Achievement% 75 Wizard Run 0 Options --------- Layout 1 ASCII 0 Keyboard 0 Movement Numpad Keybinds 0 Fullscreen 1 Font 24/Proggy Map View 50x35 Zoom Use 0% Tactical HUD 0 Map Filters NONE Filters NONE Steam 1 RUN: 7074d130-b9a3-4624-bbb7-8639e29f60ab